fUST/lending_fUST_20250930
["ID","MTS","AMOUNT","RATE_DAILY","PERIOD"]
[388578655,1759245070572,-1291.55,0.00023287,2]
[388578656,1759245070583,-378.03698057,0.00023287,2]
[388578657,1759245070592,-394.36120043,0.00023287,2]
[388578658,1759245070602,-1166.68,0.00023287,2]
[388578659,1759245070611,-1602.97,0.00023287,2]
[388578660,1759245070621,-775.21,0.00023287,2]
[388578661,1759245070631,-500.0,0.00023287,2]
[388578662,1759245070640,-832.21,0.00023287,2]
[388578663,1759245070649,-829.71,0.00023287,2]
[388578664,1759245070659,-805.26,0.00023287,2]
[388578665,1759245070668,-856.35,0.00023287,2]
[388578666,1759245070679,-500.0,0.00023287,2]
[388578667,1759245070690,-1940.76646684,0.00023312,2]
[388578668,1759245070700,-3000.0,0.00023312,2]
[388578669,1759245070710,-3000.0,0.00023312,2]
[388578670,1759245070719,-155.0,0.00023341,2]
[388578671,1759245070729,-361.16038322,0.00023435,2]
[388578672,1759245070738,-151.0,0.00023474,2]
[388578673,1759245070748,-186.6743332,0.0002356,2]
[388578674,1759245070761,-806.91,0.0002356,2]
[388578675,1759245070771,-2165.41,0.0002356,2]
[388578676,1759245070781,-1302.12,0.0002356,2]
[388578677,1759245070790,-506.04,0.0002356,2]
[388578678,1759245070800,-524.03,0.0002356,2]
[388578679,1759245070811,-512.5,0.0002356,2]
[388578680,1759245070821,-676.76,0.0002356,2]
[388578681,1759245070831,-631.06703828,0.0002356,2]
[388578682,1759245070843,-638.75,0.0002356,2]
[388578683,1759245070853,-1451.45,0.0002356,2]
[388578684,1759245070863,-500.0,0.0002356,2]
[388578685,1759245070872,-1040.15,0.0002356,2]
[388578686,1759245070882,-500.0,0.0002356,2]
[388578687,1759245070891,-840.66,0.0002356,2]
[388578688,1759245070902,-847.46,0.0002356,2]
[388578689,1759245070911,-1156.03,0.0002356,2]
[388578690,1759245070920,-968.54,0.0002356,2]
[388578691,1759245070930,-1518.72,0.0002356,2]
[388578692,1759245070939,-1453.1,0.0002356,2]
[388578693,1759245070949,-544.93,0.0002356,2]
[388578694,1759245070959,-518.44,0.0002356,2]
[388578695,1759245070968,-1051.04,0.0002356,2]
[388578696,1759245070978,-500.0,0.0002356,2]
[388578697,1759245070987,-2303.03,0.0002356,2]
[388578698,1759245070997,-3500.0,0.0002356,2]
[388578699,1759245071006,-564.48359252,0.00023561,2]
[388578700,1759245071016,-652.36,0.00023561,2]
[388578701,1759245071025,-731.2,0.00023561,2]
[388578702,1759245071034,-740.62,0.00023561,2]
[388578703,1759245071044,-500.0,0.00023561,2]
[388578704,1759245071053,-500.0,0.00023561,2]
[388578705,1759245071063,-834.81,0.00023561,2]
[388578706,1759245071073,-2266.48,0.00023561,2]
[388578707,1759245071083,-533.03,0.00023561,2]
[388578708,1759245071092,-522.16,0.00023561,2]
[388578709,1759245071101,-1168.74,0.00023561,2]
[388578710,1759245071111,-653.75,0.00023561,2]
[388578711,1759245071121,-500.0,0.00023561,2]
[388578712,1759245071130,-500.0,0.00023561,2]
[388578713,1759245071139,-970.84,0.00023561,2]
[388578714,1759245071149,-1580.86,0.00023561,2]
[388578715,1759245071159,-1807.02,0.00023561,2]
[388578716,1759245071168,-654.09,0.00023561,2]
[388578717,1759245071178,-551.26576343,0.00023561,2]
[388578718,1759245071188,-2511.69,0.00023561,2]
[388578719,1759245071197,-567.53,0.00023561,2]
[388578720,1759245071208,-1342.87,0.00023561,2]
[388578721,1759245071217,-2022.65,0.00023561,2]
[388578722,1759245071227,-1527.54,0.00023561,2]
[388578723,1759245071236,-500.0,0.00023561,2]
[388578724,1759245071246,-529.15,0.00023561,2]
[388578725,1759245071256,-500.0,0.00023561,2]
[388578726,1759245071266,-500.0,0.00023561,2]
[388578727,1759245071276,-615.54,0.00023561,2]
[388578728,1759245071286,-2819.35,0.00023561,2]
[388578729,1759245071296,-500.0,0.00023561,2]
[388578730,1759245071305,-500.0,0.00023561,2]
[388578731,1759245071316,-824.81,0.00023561,2]
[388578732,1759245071325,-500.0,0.00023561,2]
[388578733,1759245071335,-500.0,0.00023561,2]
[388578734,1759245071345,-747.27,0.00023561,2]
[388578735,1759245071355,-754.71,0.00023561,2]
[388578736,1759245071364,-670.53,0.00023561,2]
[388578737,1759245071374,-500.0,0.00023561,2]
[388578738,1759245071385,-1983.65,0.00023561,2]
[388578739,1759245071398,-803.43,0.00023561,2]
[388578740,1759245071408,-688.46,0.00023561,2]
[388578741,1759245071421,-538.24,0.00023561,2]
[388578742,1759245071431,-679.98,0.00023561,2]
[388578743,1759245071440,-500.0,0.00023561,2]
[388578744,1759245071450,-589.27,0.00023561,2]
[388578745,1759245071460,-500.0,0.00023561,2]
[388578746,1759245071470,-535.7,0.00023561,2]
[388578747,1759245071479,-1820.42,0.00023561,2]
[388578748,1759245071489,-2007.42,0.00023561,2]
[388578749,1759245071499,-793.47,0.00023561,2]
[388578750,1759245071508,-2768.25,0.00023561,2]
[388578751,1759245071517,-1506.48,0.00023561,2]
[388578752,1759245071527,-1157.75,0.00023561,2]
[388578753,1759245071537,-629.43,0.00023561,2]
[388578754,1759245071546,-500.0,0.00023561,2]
[388578755,1759245071556,-1285.01,0.00023561,2]
[388578756,1759245071567,-501.17,0.00023561,2]
[388578757,1759245071576,-500.0,0.00023561,2]
[388578758,1759245071586,-733.74,0.00023561,2]
[388578759,1759245071671,-1788.96,0.00023561,2]
[388578760,1759245071683,-1345.69,0.00023561,2]
[388578761,1759245071692,-1291.55,0.00023561,2]
[388578762,1759245071702,-1166.68,0.00023561,2]
[388578763,1759245071713,-1602.97,0.00023561,2]
[388578764,1759245071723,-775.21,0.00023561,2]
[388578765,1759245071734,-500.0,0.00023561,2]
[388578766,1759245071745,-832.21,0.00023561,2]
[388578767,1759245071756,-829.71,0.00023561,2]
[388578768,1759245071769,-805.26,0.00023561,2]
[388578769,1759245071779,-856.35,0.00023561,2]
[388578770,1759245071788,-500.0,0.00023561,2]
[388578771,1759245071799,-600.0,0.00023562,2]
[388578772,1759245071808,-151.0,0.000236,10]
[388578773,1759245071821,-360.0,0.00023728,2]
[388578774,1759245071831,-13397.44382393,0.00023735,2]
[388578775,1759245071840,-979.0,0.00023761,2]
[388578776,1759245071850,-630.0,0.00023761,2]
[388578777,1759245071859,-2156.0,0.00023761,2]
[388578778,1759245071870,-150.0,0.00023764,2]
[388578779,1759245071880,-150.0,0.00023764,2]
[388578780,1759245071889,-806.91,0.00023834,2]
[388578781,1759245071899,-2165.41,0.00023834,2]
[388578782,1759245071909,-1302.12,0.00023834,2]
[388578783,1759245071919,-506.04,0.00023834,2]
[388578784,1759245071929,-524.03,0.00023834,2]
[388578785,1759245071938,-512.5,0.00023834,2]
[388578786,1759245071947,-676.76,0.00023834,2]
[388578787,1759245071957,-638.75,0.00023834,2]
[388578788,1759245071967,-1451.45,0.00023834,2]
[388578789,1759245071976,-500.0,0.00023834,2]
[388578790,1759245071986,-1040.15,0.00023834,2]
[388578791,1759245071996,-500.0,0.00023834,2]
[388578792,1759245072006,-840.66,0.00023834,2]
[388578793,1759245072016,-847.46,0.00023834,2]
[388578794,1759245072025,-1156.03,0.00023834,2]
[388578795,1759245072034,-968.54,0.00023834,2]
[388578796,1759245072044,-1518.72,0.00023834,2]
[388578797,1759245072053,-1453.1,0.00023834,2]
[388578798,1759245072062,-544.93,0.00023834,2]
[388578799,1759245072076,-518.44,0.00023834,2]
[388578800,1759245072086,-1051.04,0.00023834,2]
[388578801,1759245072095,-198.24861935,0.00023834,2]
[388578802,1759245072105,-2303.03,0.00023834,2]
[388578803,1759245072115,-652.36,0.00023835,2]
[388578804,1759245072124,-731.2,0.00023835,2]
[388578805,1759245072133,-740.62,0.00023835,2]
[388578806,1759245072143,-247.06146409,0.00023835,2]
[388578807,1759245072152,-500.0,0.00023835,2]
[388578808,1759245072162,-834.81,0.00023835,2]
[388578809,1759245072173,-2266.48,0.00023835,2]
[388578810,1759245072183,-533.03,0.00023835,2]
[388578811,1759245072192,-522.16,0.00023835,2]
[388578812,1759245072201,-1168.74,0.00023835,2]
[388578813,1759245072211,-653.75,0.00023835,2]
[388578814,1759245072221,-500.0,0.00023835,2]
[388578815,1759245072232,-500.0,0.00023835,2]
[388578816,1759245072240,-970.84,0.00023835,2]
[388578817,1759245072250,-1580.86,0.00023835,2]
[388578818,1759245072260,-1807.02,0.00023835,2]
[388578819,1759245072270,-654.09,0.00023835,2]
[388578820,1759245072279,-2511.69,0.00023835,2]
[388578821,1759245072288,-567.53,0.00023835,2]
[388578822,1759245072298,-1342.87,0.00023835,2]
[388578823,1759245072308,-2022.65,0.00023835,2]
[388578824,1759245072320,-1527.54,0.00023835,2]
[388578825,1759245072329,-500.0,0.00023835,2]
[388578826,1759245072339,-529.15,0.00023835,2]
[388578827,1759245072349,-500.0,0.00023835,2]
[388578828,1759245072359,-500.0,0.00023835,2]
[388578829,1759245072369,-615.54,0.00023835,2]
[388578830,1759245072379,-2819.35,0.00023835,2]
[388578831,1759245072388,-478.42,0.00023835,2]
[388578832,1759245072397,-824.81,0.00023835,2]
[388578833,1759245072407,-500.0,0.00023835,2]
[388578834,1759245072416,-500.0,0.00023835,2]
[388578835,1759245072426,-500.0,0.00023835,2]
[388578836,1759245072436,-747.27,0.00023835,2]
[388578837,1759245072445,-754.71,0.00023835,2]
[388578838,1759245072454,-670.53,0.00023835,2]
[388578839,1759245072464,-500.0,0.00023835,2]
[388578840,1759245072473,-1983.65,0.00023835,2]
[388578841,1759245072483,-803.43,0.00023835,2]
[388578842,1759245072493,-688.46,0.00023835,2]
[388578843,1759245072503,-538.24,0.00023835,2]
[388578844,1759245072512,-679.98,0.00023835,2]
[388578845,1759245072522,-500.0,0.00023835,2]
[388578846,1759245072532,-589.27,0.00023835,2]
[388578847,1759245072541,-625.3597925,0.00023835,2]
[388578848,1759245072551,-535.7,0.00023835,2]
[388578850,1759245072560,-1820.42,0.00023835,2]
[388578851,1759245072573,-2007.42,0.00023835,2]
[388578852,1759245072583,-793.47,0.00023835,2]
[388578853,1759245072593,-2768.25,0.00023835,2]
[388578854,1759245072602,-1506.48,0.00023835,2]
[388578855,1759245072612,-1157.75,0.00023835,2]
[388578856,1759245072622,-629.43,0.00023835,2]
[388578857,1759245072632,-500.0,0.00023835,2]
[388578858,1759245072642,-1285.01,0.00023835,2]
[388578859,1759245072651,-501.17,0.00023835,2]
[388578860,1759245072661,-500.0,0.00023835,2]
[388578861,1759245072670,-733.74,0.00023835,2]
[388578862,1759245072681,-1788.96,0.00023835,2]
[388578863,1759245072691,-1345.69,0.00023835,2]
[388578864,1759245072700,-1291.55,0.00023835,2]
[388578865,1759245072710,-1166.68,0.00023835,2]
[388578866,1759245072720,-1602.97,0.00023835,2]
[388578867,1759245072729,-775.21,0.00023835,2]
[388578868,1759245072738,-832.21,0.00023835,2]
[388578869,1759245072748,-500.0,0.00023835,2]
[388578870,1759245072761,-829.71,0.00023835,2]
[388578871,1759245072772,-805.26,0.00023835,2]
[388578872,1759245072782,-856.35,0.00023835,2]
[388578873,1759245072791,-500.0,0.00023835,2]
[388578874,1759245072803,-3500.0,0.0002386,2]
[388578875,1759245072812,-3500.0,0.0002386,2]
[388578876,1759245072826,-151.0,0.00024,8]
[388578877,1759245072836,-151.0,0.00024022,2]
[388578878,1759245072845,-806.91,0.00024108,2]
[388578879,1759245072855,-2165.41,0.00024108,2]
[388578880,1759245072864,-1302.12,0.00024108,2]
[388578881,1759245072874,-506.04,0.00024108,2]
[388578882,1759245072883,-524.03,0.00024108,2]
[388578883,1759245072893,-512.5,0.00024108,2]
[388578884,1759245072903,-676.76,0.00024108,2]
[388578885,1759245072913,-638.75,0.00024108,2]
[388578886,1759245072922,-1451.45,0.00024108,2]
[388578887,1759245072932,-500.0,0.00024108,2]
[388578888,1759245072942,-1040.15,0.00024108,2]
[388578889,1759245072951,-520.57692713,0.00024108,2]
[388578890,1759245072961,-840.66,0.00024108,2]
[388578891,1759245072971,-847.46,0.00024108,2]
[388578892,1759245072980,-1156.03,0.00024108,2]
[388578893,1759245072989,-968.54,0.00024108,2]
[388578894,1759245072999,-1518.72,0.00024108,2]
[388578895,1759245073088,-1453.1,0.00024108,2]
[388578896,1759245073100,-544.93,0.00024108,2]
[388578897,1759245073111,-518.44,0.00024108,2]
[388578898,1759245073121,-1051.04,0.00024108,2]
[388578899,1759245073131,-2303.03,0.00024108,2]
[388578900,1759245073141,-4000.0,0.00024108,2]
[388578901,1759245073150,-652.36,0.00024109,2]
[388578902,1759245073161,-731.2,0.00024109,2]
[388578903,1759245073170,-740.62,0.00024109,2]
[388578904,1759245073179,-261.77416945,0.00024109,2]
[388578905,1759245073189,-834.81,0.00024109,2]
[388578906,1759245073198,-2266.48,0.00024109,2]
[388578907,1759245073208,-533.03,0.00024109,2]
[388578908,1759245073217,-522.16,0.00024109,2]
[388578909,1759245073227,-1168.74,0.00024109,2]
[388578910,1759245073237,-653.75,0.00024109,2]
[388578911,1759245073246,-500.0,0.00024109,2]
[388578912,1759245073256,-601.02690051,0.00024109,2]
[388578913,1759245073270,-970.84,0.00024109,2]
[388578914,1759245073279,-1580.86,0.00024109,2]
[388578915,1759245073289,-1807.02,0.00024109,2]
[388578916,1759245073298,-654.09,0.00024109,2]
[388578917,1759245073308,-2511.69,0.00024109,2]
[388578918,1759245073319,-567.53,0.00024109,2]
[388578919,1759245073329,-1342.87,0.00024109,2]
[388578920,1759245073339,-2022.65,0.00024109,2]
[388578921,1759245073348,-1527.54,0.00024109,2]
[388578922,1759245073359,-500.0,0.00024109,2]
[388578923,1759245073369,-529.15,0.00024109,2]
[388578924,1759245073379,-500.0,0.00024109,2]
[388578925,1759245073388,-500.0,0.00024109,2]
[388578926,1759245073401,-615.54,0.00024109,2]
[388578927,1759245073411,-2819.35,0.00024109,2]
[388578928,1759245073422,-824.81,0.00024109,2]
[388578929,1759245073433,-500.0,0.00024109,2]
[388578930,1759245073443,-500.0,0.00024109,2]
[388578931,1759245073453,-500.0,0.00024109,2]
[388578932,1759245073462,-747.27,0.00024109,2]
[388578933,1759245073472,-754.71,0.00024109,2]
[388578934,1759245073482,-670.53,0.00024109,2]
[388578935,1759245073491,-500.0,0.00024109,2]
[388578936,1759245073502,-1983.65,0.00024109,2]
[388578937,1759245073511,-803.43,0.00024109,2]
[388578938,1759245073521,-688.46,0.00024109,2]
[388578939,1759245073531,-538.24,0.00024109,2]
[388578940,1759245073540,-679.98,0.00024109,2]
[388578941,1759245073550,-500.0,0.00024109,2]
[388578942,1759245073560,-589.27,0.00024109,2]
[388578943,1759245073571,-535.7,0.00024109,2]
[388578944,1759245073581,-1820.42,0.00024109,2]
[388578945,1759245073590,-2007.42,0.00024109,2]
[388578946,1759245073600,-793.47,0.00024109,2]
[388578947,1759245073610,-2768.25,0.00024109,2]
[388578948,1759245073620,-1506.48,0.00024109,2]
[388578949,1759245073629,-1157.75,0.00024109,2]
[388578950,1759245073639,-629.43,0.00024109,2]
[388578951,1759245073648,-500.0,0.00024109,2]
[388578952,1759245073657,-1285.01,0.00024109,2]
[388578953,1759245073667,-501.17,0.00024109,2]
[388578954,1759245073677,-500.0,0.00024109,2]
[388578955,1759245073686,-733.74,0.00024109,2]
[388578956,1759245073696,-1788.96,0.00024109,2]
[388578957,1759245073707,-1345.69,0.00024109,2]
[388578958,1759245073717,-1291.55,0.00024109,2]
[388578959,1759245073729,-1166.68,0.00024109,2]
[388578960,1759245073739,-1602.97,0.00024109,2]
[388578961,1759245073749,-775.21,0.00024109,2]
[388578962,1759245073765,-832.21,0.00024109,2]
[388578963,1759245073775,-500.0,0.00024109,2]
[388578964,1759245073786,-829.71,0.00024109,2]
[388578965,1759245073796,-805.26,0.00024109,2]
[388578966,1759245073806,-856.35,0.00024109,2]
[388578967,1759245073815,-500.0,0.00024109,2]
[388578968,1759245073827,-750.0,0.0002411,2]
[388578969,1759245073837,-239.11887305,0.00024276,2]
[388578970,1759245073847,-806.91,0.00024382,2]
[388578971,1759245073856,-2165.41,0.00024382,2]
[388578972,1759245073866,-1302.12,0.00024382,2]
[388578973,1759245073875,-506.04,0.00024382,2]
[388578974,1759245073884,-524.03,0.00024382,2]
[388578975,1759245073894,-512.5,0.00024382,2]
[388578976,1759245073903,-676.76,0.00024382,2]
[388578977,1759245073913,-638.75,0.00024382,2]
[388578978,1759245073923,-1451.45,0.00024382,2]
[388578979,1759245073932,-500.0,0.00024382,2]
[388578980,1759245073942,-1040.15,0.00024382,2]
[388578981,1759245073952,-840.66,0.00024382,2]
[388578982,1759245073961,-847.46,0.00024382,2]
[388578983,1759245073971,-1156.03,0.00024382,2]
[388578984,1759245073980,-968.54,0.00024382,2]
[388578985,1759245073989,-1518.72,0.00024382,2]
[388578986,1759245073999,-1453.1,0.00024382,2]
[388578987,1759245074009,-544.93,0.00024382,2]
[388578988,1759245074019,-518.44,0.00024382,2]
[388578989,1759245074029,-1051.04,0.00024382,2]
[388578990,1759245074038,-2303.03,0.00024382,2]
[388578991,1759245074048,-652.36,0.00024383,2]
[388578992,1759245074058,-731.2,0.00024383,2]
[388578993,1759245074069,-740.62,0.00024383,2]
[388578994,1759245074078,-834.81,0.00024383,2]
[388578995,1759245074088,-2266.48,0.00024383,2]
[388578996,1759245074097,-533.03,0.00024383,2]
[388578997,1759245074106,-522.16,0.00024383,2]
[388578998,1759245074115,-1168.74,0.00024383,2]
[388578999,1759245074125,-653.75,0.00024383,2]
[388579000,1759245074134,-500.0,0.00024383,2]
[388579001,1759245074144,-970.84,0.00024383,2]
[388579002,1759245074153,-1580.86,0.00024383,2]
[388579003,1759245074163,-1807.02,0.00024383,2]
[388579004,1759245074173,-654.09,0.00024383,2]
[388579005,1759245074182,-2511.69,0.00024383,2]
[388579006,1759245074192,-567.53,0.00024383,2]
[388579007,1759245074202,-1342.87,0.00024383,2]
[388579008,1759245074212,-2022.65,0.00024383,2]
[388579009,1759245074221,-1527.54,0.00024383,2]
[388579010,1759245074231,-500.0,0.00024383,2]
[388579011,1759245074240,-529.15,0.00024383,2]
[388579012,1759245074250,-500.0,0.00024383,2]
[388579013,1759245074259,-500.0,0.00024383,2]
[388579014,1759245074268,-615.54,0.00024383,2]
[388579015,1759245074278,-2819.35,0.00024383,2]
[388579016,1759245074288,-824.81,0.00024383,2]
[388579017,1759245074298,-500.0,0.00024383,2]
[388579018,1759245074377,-500.0,0.00024383,2]
[388579019,1759245074387,-352.42243508,0.00024383,2]
[388579020,1759245074398,-747.27,0.00024383,2]
[388579021,1759245074408,-754.71,0.00024383,2]
[388579022,1759245074418,-670.53,0.00024383,2]
[388579023,1759245074428,-500.0,0.00024383,2]
[388579024,1759245074438,-1983.65,0.00024383,2]
[388579025,1759245074448,-803.43,0.00024383,2]
[388579026,1759245074458,-688.46,0.00024383,2]
[388579027,1759245074468,-538.24,0.00024383,2]
[388579028,1759245074478,-679.98,0.00024383,2]
[388579029,1759245074488,-500.0,0.00024383,2]
[388579030,1759245074498,-589.27,0.00024383,2]
[388579031,1759245074507,-535.7,0.00024383,2]
[388579032,1759245074517,-1820.42,0.00024383,2]
[388579033,1759245074527,-2007.42,0.00024383,2]
[388579034,1759245074537,-793.47,0.00024383,2]
[388579035,1759245074547,-2768.25,0.00024383,2]
[388579036,1759245074557,-1506.48,0.00024383,2]
[388579037,1759245074570,-1157.75,0.00024383,2]
[388579038,1759245074580,-629.43,0.00024383,2]
[388579039,1759245074590,-500.0,0.00024383,2]
[388579040,1759245074600,-1285.01,0.00024383,2]
[388579041,1759245074610,-501.17,0.00024383,2]
[388579042,1759245074620,-500.0,0.00024383,2]
[388579043,1759245074630,-733.74,0.00024383,2]
[388579044,1759245074640,-1788.96,0.00024383,2]
[388579045,1759245074650,-1345.69,0.00024383,2]
[388579046,1759245074660,-1291.55,0.00024383,2]
[388579047,1759245074671,-1166.68,0.00024383,2]
[388579048,1759245074681,-1602.97,0.00024383,2]
[388579049,1759245074692,-775.21,0.00024383,2]
[388579050,1759245074702,-832.21,0.00024383,2]
[388579051,1759245074711,-500.0,0.00024383,2]
[388579052,1759245074722,-829.71,0.00024383,2]
[388579053,1759245074732,-805.26,0.00024383,2]
[388579054,1759245074743,-856.35,0.00024383,2]
[388579055,1759245074753,-500.0,0.00024386,2]
[388579056,1759245074767,-2225.32889088,0.00024408,2]
[388579057,1759245074777,-3018.19300891,0.00024408,2]
[388579058,1759245074787,-151.0,0.000245,7]
[388579059,1759245074796,-1742.0,0.000245,2]
[388579060,1759245074807,-151.0,0.0002457,2]
[388579061,1759245074819,-322.99387161,0.00024577,2]
[388579062,1759245074829,-806.91,0.00024656,2]
[388579063,1759245074844,-2165.41,0.00024656,2]
[388579064,1759245074854,-1302.12,0.00024656,2]
[388579065,1759245074864,-506.04,0.00024656,2]
[388579066,1759245074874,-524.03,0.00024656,2]
[388579067,1759245074884,-512.5,0.00024656,2]
[388579068,1759245074893,-676.76,0.00024656,2]
[388579069,1759245074903,-638.75,0.00024656,2]
[388579070,1759245074913,-1451.45,0.00024656,2]
[388579071,1759245074922,-500.0,0.00024656,2]
[388579072,1759245074932,-1040.15,0.00024656,2]
[388579073,1759245074941,-840.66,0.00024656,2]
[388579074,1759245074951,-847.46,0.00024656,2]
[388579075,1759245074966,-1156.03,0.00024656,2]
[388579076,1759245074985,-968.54,0.00024656,2]
[388579077,1759245075000,-1518.72,0.00024656,2]
[388579078,1759245075020,-1453.1,0.00024656,2]
[388579079,1759245075041,-544.93,0.00024656,2]
[388579080,1759245075058,-518.44,0.00024656,2]
[388579081,1759245075075,-1051.04,0.00024656,2]
[388579082,1759245075093,-4500.0,0.00024656,2]
[388579083,1759245075108,-652.36,0.00024657,2]
[388579084,1759245075124,-731.2,0.00024657,2]
[388579085,1759245075142,-740.62,0.00024657,2]
[388579086,1759245075163,-834.81,0.00024657,2]
[388579087,1759245075176,-2266.48,0.00024657,2]
[388579088,1759245075194,-533.03,0.00024657,2]
[388579089,1759245075210,-522.16,0.00024657,2]
[388579090,1759245075225,-1168.74,0.00024657,2]
[388579091,1759245075240,-653.75,0.00024657,2]
[388579092,1759245075254,-500.0,0.00024657,2]
[388579093,1759245075268,-970.84,0.00024657,2]
[388579094,1759245075283,-1580.86,0.00024657,2]
[388579095,1759245075298,-1807.02,0.00024657,2]
[388579096,1759245075311,-654.09,0.00024657,2]
[388579097,1759245075328,-2511.69,0.00024657,2]
[388579098,1759245075343,-567.53,0.00024657,2]
[388579099,1759245075358,-1342.87,0.00024657,2]
[388579100,1759245075373,-2022.65,0.00024657,2]
[388579101,1759245075387,-1527.54,0.00024657,2]
[388579102,1759245075401,-500.0,0.00024657,2]
[388579103,1759245075416,-529.15,0.00024657,2]
[388579104,1759245075431,-500.0,0.00024657,2]
[388579105,1759245075445,-500.0,0.00024657,2]
[388579106,1759245075460,-615.54,0.00024657,2]
[388579107,1759245075475,-2819.35,0.00024657,2]
[388579108,1759245075489,-824.81,0.00024657,2]
[388579109,1759245075503,-500.0,0.00024657,2]
[388579110,1759245075517,-500.0,0.00024657,2]
[388579111,1759245075532,-747.27,0.00024657,2]
[388579112,1759245075546,-754.71,0.00024657,2]
[388579113,1759245075562,-670.53,0.00024657,2]
[388579114,1759245075576,-267.45954937,0.00024657,2]
[388579115,1759245075592,-1983.65,0.00024657,2]
[388579116,1759245075607,-803.43,0.00024657,2]
[388579117,1759245075622,-688.46,0.00024657,2]
[388579118,1759245075637,-538.24,0.00024657,2]
[388579119,1759245075653,-679.98,0.00024657,2]
[388579120,1759245075667,-500.0,0.00024657,2]
[388579121,1759245075682,-589.27,0.00024657,2]
[388579122,1759245075698,-535.7,0.00024657,2]
[388579123,1759245075714,-1820.42,0.00024657,2]
[388579124,1759245075728,-2007.42,0.00024657,2]
[388579125,1759245075744,-793.47,0.00024657,2]
[388579126,1759245075761,-2768.25,0.00024657,2]
[388579127,1759245075778,-1506.48,0.00024657,2]
[388579128,1759245075792,-1157.75,0.00024657,2]
[388579129,1759245075807,-629.43,0.00024657,2]
[388579130,1759245075821,-500.0,0.00024657,2]
[388579131,1759245075836,-1285.01,0.00024657,2]
[388579132,1759245075943,-501.17,0.00024657,2]
[388579133,1759245075964,-500.0,0.00024657,2]
[388579134,1759245075974,-733.74,0.00024657,2]
[388579135,1759245075983,-1788.96,0.00024657,2]
[388579136,1759245075994,-1345.69,0.00024657,2]
[388579137,1759245076004,-1291.55,0.00024657,2]
[388579138,1759245076014,-1166.68,0.00024657,2]
[388579139,1759245076024,-1602.97,0.00024657,2]
[388579140,1759245076034,-775.21,0.00024657,2]
[388579141,1759245076044,-832.21,0.00024657,2]
[388579142,1759245076053,-500.0,0.00024657,2]
[388579143,1759245076064,-829.71,0.00024657,2]
[388579144,1759245076076,-856.35,0.00024657,2]
[388579145,1759245076086,-805.26,0.00024657,2]
[388579146,1759245076096,-900.0,0.00024658,2]
[388579147,1759245076106,-150.0,0.00024658,2]
[388579148,1759245076115,-380.0,0.00024658,2]
[388579149,1759245076125,-3787.67,0.000247,2]
[388579150,1759245076134,-751609.22647,0.000249,2]
[388579151,1759245076144,-806.91,0.0002493,2]
[388579152,1759245076154,-2165.41,0.0002493,2]
[388579153,1759245076164,-1302.12,0.0002493,2]
[388579154,1759245076174,-506.04,0.0002493,2]
[388579155,1759245076183,-524.03,0.0002493,2]